lending/lending_fUSD_20240112
["ID","MTS","AMOUNT","RATE_DAILY","PERIOD"]
[311417582,1705080646896,-694.71140313,0.0003,4]
[311417583,1705080646905,-15512.04353435,0.0003,2]
[311417584,1705080646914,-3000.0,0.0003,2]
[311417585,1705080646929,-3000.0,0.0003,2]
[311417586,1705080646944,-3000.0,0.0003,2]
[311417587,1705080646954,-3000.0,0.0003,2]
[311417588,1705080646964,-3000.0,0.0003,2]
[311417589,1705080646973,-3000.0,0.0003,2]
[311417590,1705080646983,-155.0,0.0003,2]
[311417591,1705080646992,-155.0,0.0003,2]
[311417592,1705080647005,-155.0,0.0003,2]
[311417593,1705080647014,-155.0,0.0003,2]
[311417594,1705080647024,-155.0,0.0003,2]
[311417595,1705080647033,-155.0,0.0003,2]
[311417596,1705080647043,-155.0,0.0003,2]
[311417597,1705080647052,-155.0,0.0003,2]
[311417598,1705080647062,-1000.0,0.0003,2]
[311417599,1705080647071,-289.15623828,0.00030136,2]
[311417600,1705080647080,-153.84,0.00030137,2]
[311417601,1705080647090,-155.0,0.00030137,2]
[311417602,1705080647102,-840.23,0.00030365,2]
[311417603,1705080647113,-200.0,0.00030752,3]
[311417604,1705080647123,-150.37368466,0.000309,2]
[311417605,1705080647133,-150.37368417,0.000309,2]
[311417606,1705080647142,-150.37368417,0.000309,2]
[311417607,1705080647151,-150.37368417,0.000309,2]
[311417608,1705080647161,-150.37368417,0.000309,2]
[311417609,1705080647171,-150.37368417,0.000309,2]
[311417610,1705080647192,-150.37368417,0.000309,2]
[311417611,1705080647202,-150.37368417,0.000309,2]
[311417612,1705080647211,-150.37368417,0.000309,2]
[311417613,1705080647221,-150.37368417,0.000309,2]
[311417614,1705080647230,-150.37368417,0.000309,2]
[311417615,1705080647240,-150.37368417,0.000309,2]
[311417616,1705080647249,-150.37368417,0.000309,2]
[311417617,1705080647259,-519.31,0.00030942,2]
[311417618,1705080647268,-151.18818117,0.0003097,2]
[311417619,1705080647278,-150.0,0.00030999,2]
[311417620,1705080647288,-100000.0,0.00031,2]
[311417621,1705080647297,-153.84,0.0003105,2]
[311417622,1705080647307,-3463.0,0.000311,3]
[311417623,1705080647316,-43188.0,0.000311,3]
[311417624,1705080647325,-150.37368417,0.00031177,2]
[311417625,1705080647335,-832.0,0.00031189,2]
[311417626,1705080647344,-243.229,0.00031189,2]
[311417627,1705080647354,-1252.0,0.00031273,2]
[311417628,1705080647364,-1234.0,0.00031273,2]
[311417629,1705080647374,-840.23,0.00031344,2]
[311417630,1705080647383,-500.0,0.000315,2]
[311417631,1705080647393,-291.49,0.00031507,2]
[311417632,1705080647402,-155.0,0.00031507,2]
[311417633,1705080647412,-274817.452587,0.000318,3]
[311417634,1705080647423,-150.37368417,0.00031844,2]
[311417635,1705080647440,-153.84,0.00031963,2]
[311417636,1705080647456,-168.88314355,0.00031997,2]
[311417637,1705080647466,-100000.0,0.00032,2]
[311417638,1705080647475,-13056.05779594,0.00032,4]
[311417639,1705080647485,-3000.0,0.00032,2]
[311417640,1705080647494,-3000.0,0.0003201,2]
[311417641,1705080647502,-3000.0,0.0003202,2]
[311417642,1705080647511,-3000.0,0.0003203,2]
[311417643,1705080647521,-183.317,0.00032033,2]
[311417644,1705080647529,-428.448,0.00032033,2]
[311417645,1705080647539,-318.0,0.00032033,2]
[311417646,1705080647548,-870.0,0.00032033,2]
[311417647,1705080647557,-19678.0,0.00032033,2]
[311417648,1705080647566,-2270.0,0.00032033,2]
[311417649,1705080647576,-4168.0,0.00032033,2]
[311417650,1705080647585,-2901.0,0.00032033,2]
[311417651,1705080647594,-1846.0,0.00032033,2]
[311417652,1705080647603,-945.0,0.00032033,2]
[311417653,1705080647612,-3000.0,0.0003204,2]
[311417654,1705080647622,-3000.0,0.0003205,2]
[311417655,1705080647631,-3000.0,0.0003206,2]
[311417656,1705080647640,-3000.0,0.0003207,2]
[311417657,1705080647649,-4366.9794,0.0003208,2]
[311417658,1705080647658,-2499.999999,0.000321,2]
[311417659,1705080647667,-200.0,0.00032158,3]
[311417660,1705080647680,-800.0,0.00032158,5]
[311417661,1705080647689,-840.23,0.00032322,2]
[311417662,1705080647698,-150.37368417,0.00032512,2]
[311417663,1705080647707,-7999.99,0.00032623,14]
[311417664,1705080647716,-2290.457583,0.00032623,2]
[311417665,1705080647724,-225.41595,0.00032623,2]
[311417666,1705080647734,-292.880047,0.00032623,2]
[311417667,1705080647742,-296.835907,0.00032623,2]
[311417668,1705080647751,-190.358491,0.00032623,2]
[311417669,1705080647760,-1036.96288,0.00032623,2]
[311417670,1705080647769,-182.472386,0.00032623,2]
[311417671,1705080647778,-165.613365,0.00032623,2]
[311417672,1705080647787,-737.6,0.00032629,2]
[311417673,1705080647796,-328.0,0.00032701,2]
[311417674,1705080647805,-394.4764465,0.00032876,7]
[311417675,1705080647814,-303.5590829,0.00032876,7]
[311417676,1705080647823,-607.89664317,0.00032876,7]
[311417677,1705080647832,-1128.55508658,0.00032876,7]
[311417678,1705080647841,-1128.55508658,0.00032876,7]
[311417679,1705080647851,-1128.55508658,0.00032876,7]
[311417680,1705080647860,-1128.55508658,0.00032876,7]
[311417681,1705080647869,-1128.55508658,0.00032876,7]
[311417682,1705080647878,-1128.55508658,0.00032876,7]
[311417683,1705080647887,-1128.55508658,0.00032876,7]
[311417684,1705080647896,-1128.55508658,0.00032876,7]
[311417685,1705080647904,-1128.55508658,0.00032876,7]
[311417686,1705080647913,-1128.55508658,0.00032876,7]
[311417687,1705080647925,-1128.55508658,0.00032876,7]
[311417688,1705080647934,-1128.55508658,0.00032876,7]
[311417689,1705080647943,-1128.55508658,0.00032876,7]
[311417690,1705080647952,-1128.55508658,0.00032876,7]
[311417691,1705080647962,-1128.55508658,0.00032876,7]
[311417692,1705080647972,-1128.55508658,0.00032876,7]
[311417693,1705080647982,-1128.55508658,0.00032876,7]
[311417694,1705080647991,-1128.55508658,0.00032876,7]
[311417695,1705080648000,-1128.55508658,0.00032876,7]
[311417696,1705080648009,-1128.55508658,0.00032876,7]
[311417697,1705080648019,-1128.55508658,0.00032876,7]
[311417698,1705080648028,-1128.55508658,0.00032876,7]
[311417699,1705080648037,-1128.55508658,0.00032876,7]
[311417700,1705080648047,-1128.55508658,0.00032876,7]
[311417701,1705080648056,-1128.55508658,0.00032876,7]
[311417702,1705080648065,-1128.55508658,0.00032876,7]
[311417703,1705080648074,-1128.55508658,0.00032876,7]
[311417704,1705080648083,-1128.55508658,0.00032876,7]
[311417705,1705080648092,-1128.55508658,0.00032876,7]
[311417706,1705080648106,-1128.55508658,0.00032876,7]
[311417707,1705080648115,-1000.0,0.00032876,2]
[311417708,1705080648123,-1000.0,0.00032876,2]
[311417709,1705080648133,-1000.0,0.00032876,2]
[311417710,1705080648143,-1000.0,0.00032876,2]
[311417711,1705080648152,-1000.0,0.00032876,2]
[311417712,1705080648162,-1000.0,0.00032876,2]
[311417713,1705080648172,-285.13151198,0.00032876,2]
[311417714,1705080648183,-153.84,0.00032877,2]
[311417715,1705080648193,-649.51,0.00032877,15]
[311417716,1705080648203,-2952.29,0.00032877,2]
[311417717,1705080648213,-155.0,0.00032877,2]
[311417718,1705080648223,-100000.0,0.00033,3]
[311417719,1705080648233,-1064.97628675,0.00033,3]
[311417720,1705080648242,-2290.457583,0.00033031,2]
[311417721,1705080648251,-225.41595,0.00033031,2]
[311417722,1705080648261,-292.880047,0.00033031,2]
[311417723,1705080648270,-296.835907,0.00033031,2]
[311417724,1705080648279,-1036.96288,0.00033031,2]
[311417725,1705080648289,-150.37368417,0.0003318,2]
[311417726,1705080648298,-519.31,0.00033206,2]
[311417727,1705080648307,-840.23,0.00033301,2]
[311417728,1705080648316,-2290.457583,0.00033439,2]
[311417729,1705080648326,-225.41595,0.00033439,2]
[311417730,1705080648336,-292.880047,0.00033439,2]
[311417731,1705080648346,-296.835907,0.00033439,2]
[311417732,1705080648356,-190.358491,0.00033439,2]
[311417733,1705080648365,-1036.96288,0.00033439,2]
[311417734,1705080648375,-165.613365,0.00033439,2]
[311417735,1705080648385,-5000.0,0.000335,15]
[311417736,1705080648394,-736.5915639,0.00033543,2]
[311417737,1705080648404,-153.84,0.0003379,2]
[311417738,1705080648414,-2290.457583,0.00033847,2]
[311417739,1705080648425,-225.41595,0.00033847,2]
[311417740,1705080648436,-292.880047,0.00033847,2]
[311417741,1705080648449,-296.835907,0.00033847,2]
[311417742,1705080648458,-1036.96288,0.00033847,2]
[311417743,1705080648469,-150.37368417,0.00033848,2]
[311417744,1705080648478,-35549.07754017,0.00033855,10]
[311417745,1705080648488,-2281.98993414,0.00033878,9]
[311417746,1705080648498,-12190.10086003,0.00033878,10]
[311417747,1705080648507,-5469.80952354,0.00033878,9]
[311417748,1705080648517,-16342.18049866,0.00033878,10]
[311417749,1705080648527,-100000.0,0.00034,4]
[311417750,1705080648536,-1000.0,0.00034,4]
[311417751,1705080648546,-28194.72773081,0.00034,7]
[311417752,1705080648556,-801.48193066,0.00034,4]
[311417753,1705080648565,-155.0,0.00034,2]
[311417754,1705080648575,-4000.0,0.00034,2]
[311417755,1705080648584,-500.0,0.00034125,2]
[311417756,1705080648594,-155.0,0.00034247,2]
[311417757,1705080648604,-2290.457583,0.00034255,2]
[311417758,1705080648614,-225.41595,0.00034255,2]
[311417759,1705080648623,-292.880047,0.00034255,2]
[311417760,1705080648633,-296.835907,0.00034255,2]
[311417761,1705080648643,-190.358491,0.00034255,2]
[311417762,1705080648652,-1036.96288,0.00034255,2]
[311417763,1705080648662,-165.613365,0.00034255,2]
[311417764,1705080648675,-182.472386,0.00034255,2]
[311417765,1705080648684,-1250.0,0.00034273,2]
[311417766,1705080648693,-1234.0,0.00034273,2]
[311417767,1705080648703,-840.23,0.00034279,2]
[311417768,1705080648713,-150.0,0.00034399,2]
[311417769,1705080648723,-16274.48247411,0.000344,2]
[311417770,1705080648732,-150.37368417,0.00034515,2]
[311417771,1705080648743,-1782.718482,0.0003452,2]
[311417772,1705080648752,-995.028757,0.0003452,2]
[311417773,1705080648762,-8104.381563,0.0003452,2]
[311417774,1705080648775,-656.002595,0.0003452,2]
[311417775,1705080648785,-335.116297,0.0003452,2]
[311417776,1705080648795,-2296.009081,0.0003452,2]
[311417777,1705080648805,-335.116297,0.0003452,2]
[311417778,1705080648815,-1640.006487,0.0003452,2]
[311417779,1705080648824,-2296.009082,0.0003452,2]
[311417780,1705080648834,-1005.348893,0.0003452,2]
[311417781,1705080648843,-2328.78,0.00034521,2]
[311417782,1705080648853,-3000.0,0.000346,2]
[311417783,1705080648863,-1163.26,0.00034649,30]
[311417784,1705080648873,-1383.77,0.00034649,2]
[311417785,1705080648883,-596.44,0.00034649,2]
[311417786,1705080648893,-180.0,0.00034658,2]
[311417787,1705080648902,-170.8080721,0.00034701,4]
[311417788,1705080648912,-153.84,0.00034703,2]
[311417789,1705080648923,-2674.077723,0.00034794,2]
[311417790,1705080648933,-1492.543136,0.00034794,2]
[311417791,1705080648942,-12156.572345,0.00034794,2]
[311417792,1705080648952,-984.003892,0.00034794,2]
[311417793,1705080648962,-502.674446,0.00034794,2]
[311417794,1705080648972,-3444.013622,0.00034794,2]
[311417795,1705080648982,-502.674446,0.00034794,2]
[311417796,1705080648991,-2460.009731,0.00034794,2]
[311417797,1705080649001,-3444.013623,0.00034794,2]
[311417798,1705080649012,-1508.02334,0.00034794,2]
[311417799,1705080649022,-261.11110387,0.00034809,7]
[311417800,1705080649032,-1819.62184532,0.00034809,7]
[311417801,1705080649041,-3207.46362008,0.00034809,7]
[311417802,1705080649051,-1823.59233002,0.00034809,7]
[311417803,1705080649061,-630.78805758,0.00034809,7]
[311417804,1705080649071,-347.78497174,0.00034809,7]
[311417805,1705080649082,-406.37419076,0.00034809,7]
[311417806,1705080649092,-2933.02480786,0.00034809,7]
[311417807,1705080649102,-2388.3410585,0.00034809,7]
[311417808,1705080649112,-196.39413409,0.00034809,6]
[311417809,1705080649122,-298.91923697,0.00034809,7]
[311417810,1705080649132,-8949.23110012,0.000349,4]
[311417811,1705080649143,-1336.74029479,0.000349,2]
[311417812,1705080649153,-1336.74029471,0.000349,2]
[311417813,1705080649163,-1336.74029471,0.000349,2]
[311417814,1705080649175,-1336.74029471,0.000349,2]
[311417815,1705080649185,-1336.74029471,0.000349,2]
[311417816,1705080649194,-1336.74029471,0.000349,2]
[311417817,1705080649204,-1336.74029471,0.000349,2]
[311417818,1705080649213,-1336.74029471,0.000349,2]
[311417819,1705080649223,-3565.436964,0.00034931,2]
[311417820,1705080649234,-1990.057515,0.00034931,2]
[311417821,1705080649244,-16208.763126,0.00034931,2]
[311417822,1705080649254,-1312.00519,0.00034931,2]
[311417823,1705080649264,-670.232595,0.00034931,2]
[311417824,1705080649274,-4592.018163,0.00034931,2]
[311417825,1705080649284,-670.232595,0.00034931,2]
[311417826,1705080649294,-3280.012975,0.00034931,2]
[311417827,1705080649304,-4592.018164,0.00034931,2]
[311417828,1705080649314,-2010.697787,0.00034931,2]
[311417829,1705080649324,-100000.0,0.00035,5]
[311417830,1705080649334,-1804.81442942,0.00035,4]
[311417831,1705080649344,-255.47708732,0.00035,4]
[311417832,1705080649355,-16426.79456655,0.00035,2]
[311417833,1705080649365,-217.8246833,0.00035,4]
[311417834,1705080649375,-618.53338563,0.00035,4]
[311417835,1705080649385,-1978.08861786,0.00035,2]
[311417836,1705080649394,-2500.0,0.00035,2]
[311417837,1705080649404,-155.0,0.00035,4]
[311417838,1705080649414,-3494.77765478,0.00035,16]
[311417839,1705080649425,-446.78845482,0.00035,4]
[311417840,1705080649435,-184.90372335,0.00035,4]
[311417841,1705080649447,-1255.60670888,0.00035,4]
[311417842,1705080649457,-12215.05399539,0.00035,7]
[311417844,1705080649466,-150.0,0.00035,7]
[311417845,1705080649476,-166.1768957,0.00035,4]
[311417846,1705080649486,-1701.83496698,0.00035,10]
[311417847,1705080649496,-11965.35839668,0.00035,7]
[311417848,1705080649506,-5000.0,0.00035,2]
[311417849,1705080649516,-155.0,0.00035,2]
[311417850,1705080649526,-3000.0,0.00035,8]
[311417851,1705080649535,-198.88082424,0.00035,2]
[311417852,1705080649545,-198.88082424,0.00035,2]
[311417853,1705080649556,-155.92654995,0.00035,2]
[311417854,1705080649567,-155.92654995,0.00035,2]
[311417855,1705080649577,-9259.8917252,0.00035,2]
[311417856,1705080649586,-9259.8917252,0.00035,2]
[311417857,1705080649601,-9259.8917252,0.00035,2]
[311417858,1705080649611,-343.35768817,0.00035,2]
[311417859,1705080649621,-343.35768817,0.00035,2]
[311417860,1705080649631,-343.35768817,0.00035,2]
[311417861,1705080649641,-343.35768817,0.00035,2]
[311417862,1705080649651,-343.35768817,0.00035,2]
[311417863,1705080649661,-343.35768817,0.00035,2]
[311417864,1705080649670,-343.35768817,0.00035,2]
[311417865,1705080649687,-343.35768817,0.00035,2]
[311417866,1705080649697,-343.35768817,0.00035,2]
[311417867,1705080649707,-343.35768817,0.00035,2]
[311417868,1705080649716,-343.35768817,0.00035,2]
[311417869,1705080649727,-343.35768817,0.00035,2]
[311417870,1705080649736,-343.35768817,0.00035,2]
[311417871,1705080649745,-343.35768817,0.00035,2]
[311417872,1705080649756,-343.35768817,0.00035,2]
[311417873,1705080649770,-343.35768817,0.00035,2]
[311417874,1705080649780,-343.35768817,0.00035,2]
[311417875,1705080649790,-343.35768817,0.00035,2]
[311417876,1705080649800,-343.35768817,0.00035,2]
[311417877,1705080649810,-343.35768817,0.00035,2]
[311417878,1705080649819,-343.35768817,0.00035,2]
[311417879,1705080649829,-343.35768817,0.00035,2]
[311417880,1705080649839,-343.35768817,0.00035,2]
[311417881,1705080649848,-343.35768817,0.00035,2]
[311417882,1705080649858,-343.35768817,0.00035,2]
[311417883,1705080649868,-343.35768817,0.00035,2]
[311417884,1705080649878,-343.35768817,0.00035,2]
[311417885,1705080649888,-343.35768817,0.00035,2]
[311417886,1705080649898,-343.35768817,0.00035,2]
[311417887,1705080649909,-343.35768817,0.00035,2]
[311417888,1705080649918,-343.35768817,0.00035,2]
[311417889,1705080649930,-343.35768817,0.00035,2]
[311417890,1705080649940,-343.35768817,0.00035,2]
[311417891,1705080649950,-343.35768817,0.00035,2]
[311417892,1705080649959,-343.35768817,0.00035,2]
[311417893,1705080649969,-343.35768817,0.00035,2]
[311417894,1705080649979,-343.35768817,0.00035,2]
[311417895,1705080649989,-343.35768817,0.00035,2]
[311417896,1705080649998,-343.35768817,0.00035,2]
[311417897,1705080650008,-343.35768817,0.00035,2]
[311417898,1705080650018,-343.35768817,0.00035,2]
[311417899,1705080650028,-343.35768817,0.00035,2]
[311417900,1705080650038,-343.35768817,0.00035,2]
[311417901,1705080650048,-343.35768817,0.00035,2]
[311417902,1705080650058,-343.35768817,0.00035,2]
[311417903,1705080650068,-343.35768817,0.00035,2]
[311417904,1705080650078,-343.35768817,0.00035,2]
[311417905,1705080650089,-343.35768817,0.00035,2]
[311417906,1705080650099,-343.35768817,0.00035,2]
[311417907,1705080650109,-343.35768817,0.00035,2]
[311417908,1705080650118,-343.35768817,0.00035,2]
[311417909,1705080650128,-343.35768817,0.00035,2]
[311417910,1705080650138,-343.35768817,0.00035,2]
[311417911,1705080650148,-343.35768817,0.00035,2]
[311417912,1705080650159,-343.35768817,0.00035,2]
[311417913,1705080650169,-343.35768817,0.00035,2]
[311417914,1705080650182,-343.35768817,0.00035,2]
[311417915,1705080650192,-343.35768817,0.00035,2]
[311417916,1705080650202,-343.35768817,0.00035,2]
[311417917,1705080650212,-343.35768817,0.00035,2]
[311417918,1705080650223,-343.35768817,0.00035,2]
[311417919,1705080650233,-343.35768817,0.00035,2]
[311417920,1705080650243,-343.35768817,0.00035,2]
[311417921,1705080650253,-343.35768817,0.00035,2]
[311417922,1705080650264,-343.35768817,0.00035,2]
[311417923,1705080650274,-343.35768817,0.00035,2]
[311417924,1705080650284,-343.35768817,0.00035,2]
[311417925,1705080650294,-343.35768817,0.00035,2]
[311417926,1705080650305,-343.35768817,0.00035,2]
[311417927,1705080650315,-343.35768817,0.00035,2]
[311417928,1705080650325,-343.35768817,0.00035,2]
[311417929,1705080650335,-343.35768817,0.00035,2]
[311417930,1705080650345,-343.35768817,0.00035,2]
[311417931,1705080650356,-343.35768817,0.00035,2]
[311417932,1705080650367,-343.35768817,0.00035,2]
[311417933,1705080650377,-343.35768817,0.00035,2]
[311417934,1705080650388,-343.35768817,0.00035,2]
[311417935,1705080650398,-343.35768817,0.00035,2]
[311417936,1705080650409,-343.35768817,0.00035,2]
[311417937,1705080650419,-343.35768817,0.00035,2]
[311417938,1705080650432,-343.35768817,0.00035,2]
[311417939,1705080650443,-343.35768817,0.00035,2]
[311417940,1705080650457,-343.35768817,0.00035,2]
[311417941,1705080650467,-343.35768817,0.00035,2]
[311417942,1705080650478,-343.35768817,0.00035,2]
[311417943,1705080650723,-343.35768817,0.00035,2]
[311417944,1705080650745,-343.35768817,0.00035,2]
[311417945,1705080650755,-343.35768817,0.00035,2]
[311417946,1705080650764,-343.35768817,0.00035,2]
[311417947,1705080650774,-343.35768817,0.00035,2]
[311417948,1705080650783,-343.35768817,0.00035,2]
[311417949,1705080650793,-343.35768817,0.00035,2]
[311417950,1705080650802,-343.35768817,0.00035,2]
[311417951,1705080650812,-343.35768817,0.00035,2]
[311417952,1705080650821,-343.35768817,0.00035,2]
[311417953,1705080650831,-343.35768817,0.00035,2]
[311417954,1705080650840,-343.35768817,0.00035,2]
[311417955,1705080650849,-343.35768817,0.00035,2]
[311417956,1705080650859,-343.35768817,0.00035,2]
[311417957,1705080650869,-343.35768817,0.00035,2]
[311417958,1705080650879,-3000.0,0.0003501,8]
[311417959,1705080650889,-3000.0,0.0003502,8]
[311417960,1705080650898,-3000.0,0.0003503,8]
[311417961,1705080650908,-1336.74029471,0.00035031,2]
[311417962,1705080650918,-11242.072,0.00035033,2]
[311417963,1705080650934,-1841.387,0.00035033,2]
[311417964,1705080650944,-2036.0,0.00035033,2]
[311417965,1705080650953,-2899.0,0.00035033,2]
[311417966,1705080650963,-943.0,0.00035033,2]
[311417967,1705080650973,-5199.837552,0.0003504,9]
[311417968,1705080650983,-4456.796205,0.00035068,2]
[311417969,1705080650993,-2487.571893,0.00035068,2]
[311417970,1705080651003,-20260.953908,0.00035068,2]
[311417971,1705080651012,-1640.006487,0.00035068,2]
[311417972,1705080651022,-837.790744,0.00035068,2]
[311417973,1705080651031,-5740.022704,0.00035068,2]
[311417974,1705080651040,-837.790744,0.00035068,2]
[311417975,1705080651049,-4100.016218,0.00035068,2]
[311417976,1705080651059,-5740.022705,0.00035068,2]
[311417977,1705080651068,-2513.372234,0.00035068,2]
[311417978,1705080651078,-4894.0,0.00035119,2]
[311417979,1705080651088,-150.37368417,0.00035183,2]
[311417980,1705080651098,-840.23,0.00035258,2]
[311417981,1705080651107,-3072.99380299,0.00035258,4]
[311417982,1705080651117,-155.0,0.0003526,4]
[311417983,1705080651127,-9259.8917252,0.00035342,2]
[311417984,1705080651136,-6239.514687,0.00035342,2]
[311417985,1705080651147,-3482.600651,0.00035342,2]
[311417986,1705080651157,-28365.335472,0.00035342,2]
[311417987,1705080651168,-2296.009082,0.00035342,2]
[311417988,1705080651182,-1172.907042,0.00035342,2]
[311417989,1705080651192,-8036.031786,0.00035342,2]
[311417990,1705080651201,-1172.907042,0.00035342,2]
[311417991,1705080651210,-5740.022706,0.00035342,2]
[311417992,1705080651221,-8036.031787,0.00035342,2]
[311417993,1705080651230,-3518.721127,0.00035342,2]
[311417994,1705080651240,-152.0,0.00035468,3]
[311417995,1705080651250,-519.31,0.0003547,2]
[311417996,1705080651259,-4344.315891,0.000356,3]
[311417997,1705080651269,-750.0,0.000356,2]
[311417998,1705080651279,-1775.52,0.00035616,2]
[311417999,1705080651288,-500.0,0.00035616,4]
[311418000,1705080651298,-500.0,0.00035616,2]
[311418001,1705080651308,-500.0,0.00035616,4]
[311418002,1705080651318,-500.0,0.00035616,4]
[311418003,1705080651328,-500.0,0.00035616,4]
[311418004,1705080651338,-1000.0,0.00035616,4]
[311418005,1705080651347,-500.0,0.00035616,4]
[311418006,1705080651357,-500.0,0.00035616,4]
[311418007,1705080651367,-500.0,0.00035616,4]
[311418008,1705080651377,-500.0,0.00035616,4]
[311418009,1705080651387,-500.0,0.00035616,4]
[311418010,1705080651396,-500.0,0.00035616,4]
[311418011,1705080651406,-500.0,0.00035616,4]
[311418012,1705080651416,-500.0,0.00035616,4]
[311418013,1705080651429,-500.0,0.00035616,4]
[311418014,1705080651442,-500.0,0.00035616,4]
[311418015,1705080651452,-500.0,0.00035616,4]
[311418016,1705080651462,-500.0,0.00035616,4]
[311418017,1705080651472,-500.0,0.00035616,4]
[311418018,1705080651482,-500.0,0.00035616,4]
[311418019,1705080651492,-500.0,0.00035616,4]
[311418020,1705080651502,-427.75100047,0.00035616,4]
[311418021,1705080651511,-1000.0,0.00035616,5]
[311418022,1705080651523,-500.0,0.00035616,4]
[311418023,1705080651532,-500.0,0.00035616,4]
[311418024,1705080651542,-500.0,0.00035616,4]
[311418025,1705080651552,-500.0,0.00035616,4]
[311418026,1705080651561,-500.0,0.00035616,4]
[311418027,1705080651571,-500.0,0.00035616,4]
[311418028,1705080651581,-500.0,0.00035616,4]
[311418029,1705080651590,-500.0,0.00035616,4]
[311418030,1705080651600,-500.0,0.00035616,4]
[311418031,1705080651610,-500.0,0.00035616,4]
[311418032,1705080651620,-500.0,0.00035616,4]
[311418033,1705080651630,-500.0,0.00035616,4]
[311418034,1705080651639,-500.0,0.00035616,4]
[311418035,1705080651649,-513.86622545,0.00035616,4]
[311418036,1705080651658,-500.0,0.00035616,4]
[311418037,1705080651668,-500.0,0.00035616,4]
[311418038,1705080651681,-150.0,0.00035616,2]
[311418039,1705080651690,-300.0,0.00035616,7]
[311418040,1705080651701,-153.84,0.00035616,2]
[311418041,1705080651710,-3066.21,0.00035616,2]
[311418042,1705080651720,-169.14057872,0.00035617,2]
[311418043,1705080651729,-205.0,0.00035642,2]
[311418044,1705080651739,-208.0,0.00035642,2]
[311418045,1705080651748,-1802.88,0.000357,7]
[311418046,1705080651757,-4820.57,0.000357,7]
[311418047,1705080651766,-929.56,0.000357,7]
[311418048,1705080651775,-450.0,0.0003579,2]
[311418049,1705080651785,-500.0,0.0003579,2]
[311418050,1705080651794,-500.0,0.0003579,2]
[311418051,1705080651803,-500.0,0.0003579,2]
[311418052,1705080651812,-500.0,0.0003579,2]
[311418053,1705080651822,-500.0,0.0003579,2]
[311418054,1705080651831,-500.0,0.0003579,2]
[311418055,1705080651840,-500.0,0.0003579,2]
[311418056,1705080651849,-500.0,0.0003579,2]
[311418057,1705080651858,-500.0,0.0003579,2]
[311418058,1705080651867,-500.0,0.0003579,2]
[311418059,1705080651877,-500.0,0.0003579,2]
[311418060,1705080651886,-500.0,0.0003579,2]
[311418061,1705080651895,-500.0,0.0003579,2]
[311418062,1705080651905,-500.0,0.0003579,2]
[311418063,1705080651914,-500.0,0.0003579,2]
[311418064,1705080651926,-500.0,0.0003579,2]
[311418065,1705080651935,-500.0,0.0003579,2]
[311418066,1705080651944,-500.0,0.0003579,2]
[311418067,1705080651953,-500.0,0.0003579,2]
[311418068,1705080651962,-500.0,0.0003579,2]
[311418069,1705080651972,-500.0,0.0003579,2]
[311418070,1705080651981,-500.0,0.0003579,2]
[311418071,1705080651990,-500.0,0.0003579,2]
[311418072,1705080651999,-500.0,0.0003579,2]
[311418073,1705080652008,-500.0,0.0003579,2]
[311418074,1705080652017,-500.0,0.0003579,2]
[311418075,1705080652026,-500.0,0.0003579,2]
[311418076,1705080652035,-500.0,0.0003579,2]
[311418077,1705080652044,-500.0,0.0003579,2]
[311418078,1705080652054,-500.0,0.0003579,2]
[311418079,1705080652063,-500.0,0.0003579,2]
[311418080,1705080652072,-500.0,0.0003579,2]
[311418081,1705080652081,-500.0,0.0003579,2]
[311418082,1705080652091,-500.0,0.0003579,2]